[Event "*** Titled Tuesday Blitz"]
[Site "Chess.com"]
[Date "2019.01.01"]
[Round "3"]
[White "Bigfish1995"]
[Black "TST2014"]
[Result "1-0"]
[WhiteElo "2908"]
[BlackElo "2472"]
[TimeControl "180+2"]
[EndTime "13:36:52 PST"]
[Termination "Bigfish1995 won by resignation"]

1. d4 {[%clk 0:02:59.8]} 1... Nf6 {[%clk 0:03:00.6]} 2. Nf3 {[%clk 0:03:00.9]}
2... g6 {[%clk 0:03:01]} 3. Bg5 {[%clk 0:02:56.1]} 3... Bg7 {[%clk 0:03:01.3]}
4. Nbd2 {[%clk 0:02:57.2]} 4... d5 {[%clk 0:03:00.6]} 5. c3 {[%clk 0:02:57.3]}
5... O-O {[%clk 0:03:00.8]} 6. e3 {[%clk 0:02:57.1]} 6... c5 {[%clk 0:02:56.7]}
7. Be2 {[%clk 0:02:56.6]} 7... Qb6 {[%clk 0:02:53.4]} 8. Qb3 {[%clk 0:02:53.3]}
8... Nc6 {[%clk 0:02:53.3]} 9. O-O {[%clk 0:02:53.3]} 9... c4 {[%clk 0:02:53.2]}
10. Qa3 {[%clk 0:02:53.1]} 10... Bf5 {[%clk 0:02:45.5]} 11. b3 {[%clk
0:02:52.3]} 11... cxb3 {[%clk 0:02:32.1]} 12. axb3 {[%clk 0:02:52.9]} 12... Rfe8
{[%clk 0:02:22.4]} 13. b4 {[%clk 0:02:38.7]} 13... a6 {[%clk 0:02:17.5]} 14. b5
{[%clk 0:01:30.7]} 14... Nb8 {[%clk 0:01:52.1]} 15. c4 {[%clk 0:01:29]} 15...
dxc4 {[%clk 0:01:42.2]} 16. Nxc4 {[%clk 0:01:11.5]} 16... Qxb5 {[%clk
0:01:38.3]} 17. Bxf6 {[%clk 0:01:12.4]} 17... Bxf6 {[%clk 0:01:33]} 18. Nd6
{[%clk 0:01:13.2]} 18... Qd7 {[%clk 0:01:22.7]} 19. Nxe8 {[%clk 0:01:12.9]}
19... Qxe8 {[%clk 0:01:24.1]} 20. Qb4 {[%clk 0:00:58.4]} 20... Be4 {[%clk
0:01:17.5]} 21. Rfc1 {[%clk 0:00:52]} 21... Nc6 {[%clk 0:01:15.5]} 22. Qb6
{[%clk 0:00:52.4]} 22... Qd8 {[%clk 0:01:05.6]} 23. Qxd8+ {[%clk 0:00:49.3]}
23... Rxd8 {[%clk 0:01:06.4]} 24. Nd2 {[%clk 0:00:50.8]} 24... Bd5 {[%clk
0:01:05.9]} 25. Bf3 {[%clk 0:00:29.4]} 25... e5 {[%clk 0:01:02.3]} 26. Bxd5
{[%clk 0:00:28.2]} 26... Rxd5 {[%clk 0:01:02.1]} 27. Ne4 {[%clk 0:00:29.1]}
27... Bg7 {[%clk 0:00:59.1]} 28. Rc5 {[%clk 0:00:25.9]} 28... Rd8 {[%clk
0:00:38.2]} 29. d5 {[%clk 0:00:25.7]} 29... Nb4 {[%clk 0:00:39.3]} 30. Rd1
{[%clk 0:00:20.1]} 30... h6 {[%clk 0:00:32.6]} 31. Rc7 {[%clk 0:00:17.1]} 31...
b5 {[%clk 0:00:28.6]} 32. d6 {[%clk 0:00:17.4]} 32... f5 {[%clk 0:00:20.9]} 33.
Nc5 {[%clk 0:00:16.6]} 33... e4 {[%clk 0:00:21.1]} 34. Rxg7+ {[%clk 0:00:16.7]}
34... Kxg7 {[%clk 0:00:21.5]} 35. Ne6+ {[%clk 0:00:18.1]} 35... Kf7 {[%clk
0:00:23.1]} 36. Nxd8+ {[%clk 0:00:19.2]} 36... Ke8 {[%clk 0:00:24.8]} 37. Nb7
{[%clk 0:00:20]} 37... Kd7 {[%clk 0:00:25.5]} 38. Nc5+ {[%clk 0:00:21.2]} 38...
Kc6 {[%clk 0:00:26.7]} 39. d7 {[%clk 0:00:22.6]} 39... Kxc5 {[%clk 0:00:28.2]}
40. d8=Q {[%clk 0:00:23.6]} 40... Nd3 {[%clk 0:00:29.3]} 41. Qd4+ {[%clk
0:00:24.4]} 41... Kc6 {[%clk 0:00:30]} 42. f3 {[%clk 0:00:25.6]} 42... a5 {[%clk
0:00:29]} 43. fxe4 {[%clk 0:00:26.8]} 43... fxe4 {[%clk 0:00:30.5]} 44. Qxe4+
{[%clk 0:00:27.9]} 1-0

[Event "*** Titled Tuesday Blitz"]
[Site "Chess.com"]
[Date "2019.01.01"]
[Round "3"]
[White "PlotnikovPavel"]
[Black "tomozupan"]
[Result "1-0"]
[WhiteElo "2383"]
[BlackElo "2201"]
[TimeControl "180+2"]
[EndTime "13:36:52 PST"]
[Termination "PlotnikovPavel won by resignation"]

1. d4 {[%clk 0:02:59.2]} 1... Nf6 {[%clk 0:02:59.2]} 2. Nf3 {[%clk 0:03:00.3]}
2... g6 {[%clk 0:02:58.1]} 3. c4 {[%clk 0:03:01.4]} 3... Bg7 {[%clk 0:02:57.5]}
4. Nc3 {[%clk 0:03:02.8]} 4... d5 {[%clk 0:02:58.1]} 5. e4 {[%clk 0:03:04.3]}
5... dxe4 {[%clk 0:02:50.8]} 6. Ng5 {[%clk 0:03:02.9]} 6... O-O {[%clk 0:02:37]}
7. Be3 {[%clk 0:03:00.9]} 7... Ng4 {[%clk 0:02:14.1]} 8. Ngxe4 {[%clk 0:02:54]}
8... Nxe3 {[%clk 0:02:14.4]} 9. fxe3 {[%clk 0:02:55.4]} 9... e5 {[%clk
0:02:15.1]} 10. d5 {[%clk 0:02:52.6]} 10... c6 {[%clk 0:02:12.4]} 11. dxc6
{[%clk 0:02:48.2]} 11... Nxc6 {[%clk 0:02:11.9]} 12. Qxd8 {[%clk 0:02:40]} 12...
Rxd8 {[%clk 0:02:11.6]} 13. Nd5 {[%clk 0:02:39.6]} 13... Be6 {[%clk 0:02:08.1]}
14. Nc7 {[%clk 0:02:38.2]} 14... Rac8 {[%clk 0:02:08.3]} 15. Nxe6 {[%clk
0:02:39.2]} 15... fxe6 {[%clk 0:02:09.2]} 16. Be2 {[%clk 0:02:36.1]} 16... Bh6
{[%clk 0:01:53.2]} 17. Bg4 {[%clk 0:02:25.6]} 17... Re8 {[%clk 0:01:09.1]} 18.
Nf6+ {[%clk 0:02:21.9]} 18... Kg7 {[%clk 0:01:07.5]} 19. Nxe8+ {[%clk
0:02:22.9]} 19... Rxe8 {[%clk 0:01:08.4]} 20. Ke2 {[%clk 0:02:24.2]} 20... e4
{[%clk 0:01:07.3]} 21. Bh3 {[%clk 0:01:47.2]} 21... Ne5 {[%clk 0:01:06.1]} 22.
Rhd1 {[%clk 0:01:44.5]} 22... Re7 {[%clk 0:00:57.4]} 23. Rd6 {[%clk 0:01:40.5]}
23... Nxc4 {[%clk 0:00:53.6]} 24. Rxe6 {[%clk 0:01:41.1]} 24... Rxe6 {[%clk
0:00:53.3]} 25. Bxe6 {[%clk 0:01:41.6]} 25... Nxe3 {[%clk 0:00:53.8]} 26. g3
{[%clk 0:01:13.4]} 26... Kf6 {[%clk 0:00:52.8]} 27. Bg8 {[%clk 0:01:11.8]} 27...
Ng4 {[%clk 0:00:48]} 28. Rf1+ {[%clk 0:01:09.9]} 28... Kg7 {[%clk 0:00:46.3]}
29. Bb3 {[%clk 0:01:05.9]} 29... Ne5 {[%clk 0:00:36.8]} 30. Bd5 {[%clk
0:01:06.2]} 30... e3 {[%clk 0:00:31.5]} 31. Bxb7 {[%clk 0:01:05.3]} 31... Bg5
{[%clk 0:00:29.2]} 32. Bd5 {[%clk 0:01:02.6]} 32... h5 {[%clk 0:00:27]} 33. h4
{[%clk 0:00:58.6]} 33... Bh6 {[%clk 0:00:27.2]} 34. b4 {[%clk 0:00:57.9]} 34...
g5 {[%clk 0:00:28.1]} 35. hxg5 {[%clk 0:00:51.7]} 35... Bxg5 {[%clk 0:00:28.5]}
36. b5 {[%clk 0:00:53.1]} 36... Kg6 {[%clk 0:00:15.5]} 37. a4 {[%clk 0:00:51.3]}
37... Ng4 {[%clk 0:00:15.5]} 38. a5 {[%clk 0:00:45.6]} 38... Nf6 {[%clk
0:00:15.4]} 39. Bc6 {[%clk 0:00:40.4]} 1-0

[Event "*** Titled Tuesday Blitz"]
[Site "Chess.com"]
[Date "2019.01.01"]
[Round "3"]
[White "1e41-0"]
[Black "LastGladiator1"]
[Result "1-0"]
[WhiteElo "2547"]
[BlackElo "2627"]
[TimeControl "180+2"]
[EndTime "13:36:53 PST"]
[Termination "1e41-0 won by resignation"]

1. d4 {[%clk 0:03:01.9]} 1... Nf6 {[%clk 0:03:00.6]} 2. c4 {[%clk 0:03:02.6]}
2... c5 {[%clk 0:03:02.1]} 3. d5 {[%clk 0:03:03.7]} 3... e6 {[%clk 0:03:03.1]}
4. Nc3 {[%clk 0:03:04.5]} 4... exd5 {[%clk 0:03:04.3]} 5. cxd5 {[%clk
0:03:06.4]} 5... d6 {[%clk 0:03:05.8]} 6. e4 {[%clk 0:03:07.9]} 6... g6 {[%clk
0:03:07.3]} 7. Nge2 {[%clk 0:03:09.4]} 7... Bg7 {[%clk 0:03:08.5]} 8. Ng3 {[%clk
0:03:10.9]} 8... O-O {[%clk 0:03:10]} 9. Be2 {[%clk 0:03:12.4]} 9... a6 {[%clk
0:03:09.5]} 10. a4 {[%clk 0:03:12.3]} 10... Re8 {[%clk 0:03:08.6]} 11. O-O
{[%clk 0:03:13.3]} 11... Nbd7 {[%clk 0:03:05.3]} 12. f4 {[%clk 0:02:56.1]} 12...
h5 {[%clk 0:02:57.6]} 13. Bf3 {[%clk 0:02:56.3]} 13... c4 {[%clk 0:02:54.6]} 14.
Be3 {[%clk 0:02:47.2]} 14... Ng4 {[%clk 0:02:44]} 15. Bxg4 {[%clk 0:02:31.8]}
15... hxg4 {[%clk 0:02:45.9]} 16. Bd4 {[%clk 0:02:30.2]} 16... Nc5 {[%clk
0:01:14]} 17. Bxc5 {[%clk 0:02:09.8]} 17... dxc5 {[%clk 0:01:14]} 18. e5 {[%clk
0:02:11.3]} 18... g5 {[%clk 0:01:13.5]} 19. Nh5 {[%clk 0:01:31.5]} 19... gxf4
{[%clk 0:01:08.1]} 20. e6 {[%clk 0:01:30.3]} 20... Bd4+ {[%clk 0:00:34.3]} 21.
Kh1 {[%clk 0:01:29.7]} 21... Qg5 {[%clk 0:00:29]} 22. Rxf4 {[%clk 0:01:20.5]}
22... f5 {[%clk 0:00:22.6]} 23. Ne4 {[%clk 0:00:57.2]} 23... Qxh5 {[%clk
0:00:20.2]} 24. Qxd4 {[%clk 0:00:57]} 24... cxd4 {[%clk 0:00:10.9]} 25. Nf6+
{[%clk 0:00:57.1]} 25... Kg7 {[%clk 0:00:12.3]} 26. Nxh5+ {[%clk 0:00:58.2]}
26... Kg6 {[%clk 0:00:13.6]} 27. Rxf5 {[%clk 0:00:41.2]} 27... Kxf5 {[%clk
0:00:05.9]} 28. Ng7+ {[%clk 0:00:42]} 28... Kg6 {[%clk 0:00:04.8]} 29. Nxe8
{[%clk 0:00:43]} 29... Bxe6 {[%clk 0:00:03.6]} 30. Nc7 {[%clk 0:00:44]} 30...
Rc8 {[%clk 0:00:05.1]} 31. Nxe6 {[%clk 0:00:43]} 31... d3 {[%clk 0:00:06.8]} 32.
d6 {[%clk 0:00:36.9]} 32... c3 {[%clk 0:00:07.9]} 33. bxc3 {[%clk 0:00:37]}
33... Rxc3 {[%clk 0:00:09]} 34. d7 {[%clk 0:00:21.4]} 34... d2 {[%clk
0:00:09.7]} 35. Rg1 {[%clk 0:00:22.5]} 35... Rc1 {[%clk 0:00:10.5]} 36. d8=Q
{[%clk 0:00:22.7]} 36... Re1 {[%clk 0:00:09.6]} 37. Qxd2 {[%clk 0:00:22]} 37...
Rxe6 {[%clk 0:00:09.2]} 38. Qd3+ {[%clk 0:00:23.1]} 38... Re4 {[%clk 0:00:11.1]}
39. Qxe4+ {[%clk 0:00:23.9]} 1-0

[Event "*** Titled Tuesday Blitz"]
[Site "Chess.com"]
[Date "2019.01.01"]
[Round "3"]
[White "andrzej"]
[Black "pulvettd"]
[Result "0-1"]
[WhiteElo "2273"]
[BlackElo "2504"]
[TimeControl "180+2"]
[EndTime "13:36:54 PST"]
[Termination "pulvettd won on time"]

1. d4 {[%clk 0:03:01.7]} 1... Nf6 {[%clk 0:02:55.3]} 2. c4 {[%clk 0:03:02.7]}
2... e6 {[%clk 0:02:56.4]} 3. g3 {[%clk 0:03:03.7]} 3... c5 {[%clk 0:02:54.1]}
4. d5 {[%clk 0:03:04.8]} 4... exd5 {[%clk 0:02:56]} 5. cxd5 {[%clk 0:03:06.5]}
5... d6 {[%clk 0:02:57.1]} 6. Nf3 {[%clk 0:03:07.7]} 6... g6 {[%clk 0:02:59]} 7.
Bg2 {[%clk 0:03:09.3]} 7... Bg7 {[%clk 0:02:59.8]} 8. O-O {[%clk 0:03:09.4]}
8... O-O {[%clk 0:03:01.6]} 9. Nc3 {[%clk 0:03:10.1]} 9... Nbd7 {[%clk
0:02:54.6]} 10. Re1 {[%clk 0:03:10.1]} 10... a6 {[%clk 0:02:42.4]} 11. Bf4
{[%clk 0:03:07.4]} 11... Qe7 {[%clk 0:02:37.7]} 12. a4 {[%clk 0:03:06.2]} 12...
Ng4 {[%clk 0:02:37.7]} 13. Qc2 {[%clk 0:02:36.3]} 13... Nde5 {[%clk 0:02:34.7]}
14. h3 {[%clk 0:02:15.9]} 14... Nxf3+ {[%clk 0:02:06.3]} 15. exf3 {[%clk
0:02:14.8]} 15... Ne5 {[%clk 0:02:07.5]} 16. Bxe5 {[%clk 0:02:03.7]} 16... dxe5
{[%clk 0:02:09.4]} 17. Rad1 {[%clk 0:01:58.3]} 17... Bf5 {[%clk 0:01:56.8]} 18.
Qb3 {[%clk 0:01:55.3]} 18... Qd6 {[%clk 0:01:54.1]} 19. g4 {[%clk 0:01:49.5]}
19... c4 {[%clk 0:01:49.2]} 20. Qxc4 {[%clk 0:01:34.3]} 20... Bc2 {[%clk
0:01:50.2]} 21. Rc1 {[%clk 0:01:14.1]} 21... Rac8 {[%clk 0:01:45.8]} 22. Qe2
{[%clk 0:01:11.9]} 22... Bb3 {[%clk 0:01:43.2]} 23. Qd2 {[%clk 0:00:57.1]} 23...
f5 {[%clk 0:01:38.8]} 24. a5 {[%clk 0:00:28.2]} 24... Rc5 {[%clk 0:01:35.3]} 25.
Ra1 {[%clk 0:00:16.6]} 25... Rc4 {[%clk 0:01:23.6]} 26. Ra3 {[%clk 0:00:15.5]}
26... Rd4 {[%clk 0:01:24.6]} 27. Qe3 {[%clk 0:00:15.2]} 27... Bxd5 {[%clk
0:01:25.4]} 28. Nxd5 {[%clk 0:00:15.9]} 28... Rxd5 {[%clk 0:01:27]} 29. f4
{[%clk 0:00:17.3]} 29... e4 {[%clk 0:01:28.2]} 30. Rb3 {[%clk 0:00:17.1]} 30...
Bd4 {[%clk 0:01:21.7]} 31. Qg3 {[%clk 0:00:15.9]} 31... fxg4 {[%clk 0:00:56.8]}
32. Bxe4 {[%clk 0:00:16.6]} 32... Rb5 {[%clk 0:00:52.4]} 33. Rxb5 {[%clk
0:00:17]} 33... axb5 {[%clk 0:00:54.3]} 34. Re2 {[%clk 0:00:15.6]} 34... Rxf4
{[%clk 0:00:50.4]} 35. Qb3+ {[%clk 0:00:14.8]} 35... Kg7 {[%clk 0:00:49.9]} 36.
Qxb5 {[%clk 0:00:14]} 36... Rxf2 {[%clk 0:00:47.7]} 37. Rxf2 {[%clk 0:00:08.8]}
37... Qg3+ {[%clk 0:00:47.3]} 38. Kh1 {[%clk 0:00:09.9]} 38... Qxf2 {[%clk
0:00:46.2]} 39. Qxb7+ {[%clk 0:00:10.1]} 39... Kh6 {[%clk 0:00:46.2]} 0-1

[Event "*** Titled Tuesday Blitz"]
[Site "Chess.com"]
[Date "2019.01.01"]
[Round "3"]
[White "sunloong"]
[Black "j2806"]
[Result "1-0"]
[WhiteElo "1947"]
[BlackElo "1738"]
[TimeControl "180+2"]
[EndTime "13:36:54 PST"]
[Termination "sunloong won by resignation"]

1. e4 {[%clk 0:03:01.9]} 1... c5 {[%clk 0:02:58.9]} 2. Nf3 {[%clk 0:03:01.7]}
2... d6 {[%clk 0:02:59.5]} 3. d4 {[%clk 0:03:03.1]} 3... cxd4 {[%clk 0:03:00.6]}
4. Qxd4 {[%clk 0:03:04.4]} 4... Nc6 {[%clk 0:03:00.8]} 5. Qe3 {[%clk 0:03:05.7]}
5... Nf6 {[%clk 0:03:01.7]} 6. c4 {[%clk 0:03:06.8]} 6... e5 {[%clk 0:02:57.2]}
7. Nc3 {[%clk 0:03:07.8]} 7... Be6 {[%clk 0:02:58.1]} 8. h3 {[%clk 0:03:08.3]}
8... Be7 {[%clk 0:02:56.2]} 9. Be2 {[%clk 0:03:09.2]} 9... Rc8 {[%clk
0:02:52.9]} 10. O-O {[%clk 0:03:04.6]} 10... Nb4 {[%clk 0:02:52.5]} 11. Qxa7
{[%clk 0:02:45.4]} 11... Bxc4 {[%clk 0:02:26.3]} 12. Qa4+ {[%clk 0:02:39.3]}
12... Qd7 {[%clk 0:02:16.7]} 13. Qxb4 {[%clk 0:02:18.9]} 13... Bxe2 {[%clk
0:02:13]} 14. Nxe2 {[%clk 0:02:20.6]} 14... Qc6 {[%clk 0:02:07.2]} 15. Nc3
{[%clk 0:01:43]} 15... d5 {[%clk 0:01:54.2]} 16. Qb3 {[%clk 0:01:40.2]} 16...
dxe4 {[%clk 0:01:51.3]} 17. Nxe5 {[%clk 0:01:39.3]} 17... Qe6 {[%clk 0:01:44.5]}
18. Qxe6 {[%clk 0:01:32]} 18... fxe6 {[%clk 0:01:44.2]} 19. Re1 {[%clk
0:01:32.2]} 19... Bd6 {[%clk 0:01:35.2]} 20. Ng4 {[%clk 0:01:23.5]} 20... Bb4
{[%clk 0:01:30.9]} 21. Nxf6+ {[%clk 0:01:19.1]} 21... gxf6 {[%clk 0:01:30.5]}
22. Rxe4 {[%clk 0:01:20.5]} 22... Bxc3 {[%clk 0:01:29.5]} 23. bxc3 {[%clk
0:01:21.7]} 23... Kf7 {[%clk 0:01:25.9]} 24. Bb2 {[%clk 0:01:19]} 24... Rhd8
{[%clk 0:01:22]} 25. Rae1 {[%clk 0:01:18.3]} 25... e5 {[%clk 0:01:19.6]} 26. f4
{[%clk 0:01:13.3]} 26... Rd2 {[%clk 0:01:14]} 27. R1e2 {[%clk 0:01:11.3]} 27...
Rxe2 {[%clk 0:01:10.5]} 28. Rxe2 {[%clk 0:01:11.9]} 28... exf4 {[%clk
0:01:10.9]} 29. Re4 {[%clk 0:01:12.1]} 29... f3 {[%clk 0:01:07.7]} 30. gxf3
{[%clk 0:01:12.3]} 30... Ra8 {[%clk 0:01:04.8]} 31. a4 {[%clk 0:01:13]} 31...
Rd8 {[%clk 0:00:57.2]} 32. Kf2 {[%clk 0:01:13.1]} 32... Rd2+ {[%clk 0:00:54.9]}
33. Re2 {[%clk 0:01:13.5]} 33... Rd1 {[%clk 0:00:53]} 34. Ba3 {[%clk 0:01:11.4]}
34... Ra1 {[%clk 0:00:50.6]} 35. Bb4 {[%clk 0:01:10.6]} 35... Rxa4 {[%clk
0:00:49.7]} 36. Re7+ {[%clk 0:01:12]} 36... Kg6 {[%clk 0:00:48.5]} 37. Rxb7
{[%clk 0:01:13]} 37... Ra2+ {[%clk 0:00:47.4]} 38. Kg3 {[%clk 0:01:12.7]} 38...
h5 {[%clk 0:00:43.5]} 39. f4 {[%clk 0:01:12.4]} 39... Rd2 {[%clk 0:00:20.2]} 40.
Re7 {[%clk 0:01:06.3]} 40... Rd3+ {[%clk 0:00:19.8]} 41. Kg2 {[%clk 0:01:04.3]}
41... Kf5 {[%clk 0:00:20.2]} 42. Rh7 {[%clk 0:01:03.7]} 42... Kxf4 {[%clk
0:00:19.4]} 43. Rxh5 {[%clk 0:01:03.9]} 43... f5 {[%clk 0:00:19.8]} 44. Rh4+
{[%clk 0:01:02.9]} 44... Ke3 {[%clk 0:00:20]} 45. Bc5+ {[%clk 0:01:01.3]} 45...
Kd2 {[%clk 0:00:16.9]} 46. Bd4 {[%clk 0:01:02.4]} 46... Ke2 {[%clk 0:00:13]} 47.
Rf4 {[%clk 0:01:03.6]} 47... Rd2 {[%clk 0:00:07.5]} 48. Rf2+ {[%clk 0:01:04.7]}
48... Kd3 {[%clk 0:00:07.3]} 49. Rxd2+ {[%clk 0:01:06.1]} 49... Kxd2 {[%clk
0:00:08.2]} 1-0

[Event "*** Titled Tuesday Blitz"]
[Site "Chess.com"]
[Date "2019.01.01"]
[Round "3"]
[White "Korchmar_Vasiliy"]
[Black "talento10"]
[Result "1-0"]
[WhiteElo "2789"]
[BlackElo "2545"]
[TimeControl "180+2"]
[EndTime "13:37:01 PST"]
[Termination "Korchmar_Vasiliy won by resignation"]

1. d4 {[%clk 0:03:01.4]} 1... Nf6 {[%clk 0:02:59.7]} 2. c4 {[%clk 0:03:02.1]}
2... g6 {[%clk 0:02:44.6]} 3. Nc3 {[%clk 0:03:02.5]} 3... Bg7 {[%clk 0:02:46.3]}
4. e4 {[%clk 0:03:02.9]} 4... d6 {[%clk 0:02:48]} 5. h3 {[%clk 0:03:03.3]} 5...
O-O {[%clk 0:02:48.8]} 6. Nf3 {[%clk 0:03:04.1]} 6... e5 {[%clk 0:02:49.4]} 7.
d5 {[%clk 0:03:04.6]} 7... a5 {[%clk 0:02:50]} 8. g4 {[%clk 0:03:04.9]} 8... Na6
{[%clk 0:02:51.2]} 9. Be3 {[%clk 0:03:04.7]} 9... Nc5 {[%clk 0:02:51.9]} 10. Nd2
{[%clk 0:03:04.9]} 10... b6 {[%clk 0:01:14.6]} 11. Be2 {[%clk 0:03:05.2]} 11...
Bb7 {[%clk 0:01:15.1]} 12. g5 {[%clk 0:03:06.3]} 12... Nfd7 {[%clk 0:01:16.4]}
13. h4 {[%clk 0:03:07.1]} 13... f5 {[%clk 0:01:17]} 14. h5 {[%clk 0:03:05.6]}
14... f4 {[%clk 0:01:05.6]} 15. Bxc5 {[%clk 0:03:06.6]} 15... Nxc5 {[%clk
0:01:07.1]} 16. h6 {[%clk 0:02:59.4]} 16... Bh8 {[%clk 0:01:08.3]} 17. Rg1
{[%clk 0:03:01]} 17... c6 {[%clk 0:00:59.1]} 18. Na4 {[%clk 0:02:49.7]} 18...
Rf7 {[%clk 0:00:56.6]} 19. Nxc5 {[%clk 0:02:46.3]} 19... bxc5 {[%clk 0:00:58.5]}
20. Bg4 {[%clk 0:02:41.3]} 20... Qxg5 {[%clk 0:00:42.4]} 21. Nf3 {[%clk
0:02:42.4]} 21... Qe7 {[%clk 0:00:41.9]} 22. Be6 {[%clk 0:02:41.2]} 22... Bf6
{[%clk 0:00:43.5]} 23. Qa4 {[%clk 0:02:15.6]} 23... cxd5 {[%clk 0:00:43]} 24.
cxd5 {[%clk 0:02:17.5]} 24... Qd8 {[%clk 0:00:42.3]} 25. O-O-O {[%clk
0:02:11.2]} 25... Rb8 {[%clk 0:00:41.4]} 26. Rd3 {[%clk 0:02:07.5]} 26... Bc8
{[%clk 0:00:20.8]} 27. Bxf7+ {[%clk 0:02:06.4]} 27... Kxf7 {[%clk 0:00:22.7]}
28. Ra3 {[%clk 0:01:48.5]} 28... Rb4 {[%clk 0:00:24.2]} 29. Qxa5 {[%clk
0:01:49.2]} 29... Qxa5 {[%clk 0:00:25.7]} 30. Rxa5 {[%clk 0:01:51.1]} 30... Rb7
{[%clk 0:00:26.4]} 31. Ra8 {[%clk 0:01:22.4]} 31... Rc7 {[%clk 0:00:18]} 32.
Ng5+ {[%clk 0:01:19]} 32... Bxg5 {[%clk 0:00:18.3]} 33. Rxg5 {[%clk 0:01:20.9]}
33... Kf6 {[%clk 0:00:19.9]} 34. Rg1 {[%clk 0:01:21.9]} 34... g5 {[%clk
0:00:21]} 35. f3 {[%clk 0:01:20.3]} 35... Kg6 {[%clk 0:00:20.6]} 36. a4 {[%clk
0:00:55.1]} 36... Kxh6 {[%clk 0:00:18.9]} 37. a5 {[%clk 0:00:56.5]} 37... Kg6
{[%clk 0:00:19]} 38. a6 {[%clk 0:00:57]} 38... Bh3 {[%clk 0:00:16.6]} 39. a7
{[%clk 0:00:51.8]} 39... Rg7 {[%clk 0:00:15.2]} 40. Kd2 {[%clk 0:00:48.6]} 40...
h5 {[%clk 0:00:15.2]} 41. Ra1 {[%clk 0:00:48.8]} 41... g4 {[%clk 0:00:15.7]} 42.
fxg4 {[%clk 0:00:47.6]} 42... hxg4 {[%clk 0:00:16.7]} 43. Rh8 {[%clk 0:00:45.4]}
43... Rxa7 {[%clk 0:00:16]} 44. Rxa7 {[%clk 0:00:47.3]} 44... f3 {[%clk
0:00:16.6]} 45. Ke3 {[%clk 0:00:48.1]} 1-0

[Event "*** Titled Tuesday Blitz"]
[Site "Chess.com"]
[Date "2019.01.01"]
[Round "3"]
[White "josmito10"]
[Black "GadimbayliA"]
[Result "0-1"]
[WhiteElo "2773"]
[BlackElo "2776"]
[TimeControl "180+2"]
[EndTime "13:37:03 PST"]
[Termination "GadimbayliA won by resignation"]

1. d4 {[%clk 0:03:01.9]} 1... Nf6 {[%clk 0:03:00.6]} 2. c4 {[%clk 0:03:02.7]}
2... e5 {[%clk 0:03:01.9]} 3. dxe5 {[%clk 0:03:01]} 3... Ng4 {[%clk 0:03:03.1]}
4. Nc3 {[%clk 0:02:56.1]} 4... Nc6 {[%clk 0:02:56.4]} 5. e3 {[%clk 0:02:23.9]}
5... Ngxe5 {[%clk 0:02:56.1]} 6. Nf3 {[%clk 0:02:17.8]} 6... g6 {[%clk
0:02:56.6]} 7. Be2 {[%clk 0:02:09.4]} 7... Bg7 {[%clk 0:02:56.4]} 8. O-O {[%clk
0:02:10.9]} 8... O-O {[%clk 0:02:57]} 9. Qc2 {[%clk 0:02:09.1]} 9... a5 {[%clk
0:02:57.3]} 10. Rd1 {[%clk 0:02:00.3]} 10... d6 {[%clk 0:02:58.4]} 11. Nxe5
{[%clk 0:02:00]} 11... Nxe5 {[%clk 0:02:57.6]} 12. b3 {[%clk 0:01:58.8]} 12...
Bf5 {[%clk 0:02:57.9]} 13. e4 {[%clk 0:01:57.9]} 13... Be6 {[%clk 0:02:58.9]}
14. Bb2 {[%clk 0:01:55.3]} 14... Qh4 {[%clk 0:02:54.8]} 15. Nd5 {[%clk
0:01:46.5]} 15... Bxd5 {[%clk 0:02:32.8]} 16. cxd5 {[%clk 0:01:39.1]} 16... Rac8
{[%clk 0:02:29]} 17. Rac1 {[%clk 0:01:25.3]} 17... f5 {[%clk 0:02:24.1]} 18.
exf5 {[%clk 0:01:20.7]} 18... Rxf5 {[%clk 0:02:22.4]} 19. Bd3 {[%clk 0:01:13.6]}
19... Rh5 {[%clk 0:01:53.6]} 20. h3 {[%clk 0:01:07.9]} 20... Rg5 {[%clk
0:01:49.2]} 21. Kf1 {[%clk 0:01:00]} 21... Rf8 {[%clk 0:01:48.1]} 22. Bxe5
{[%clk 0:00:42.3]} 22... Bxe5 {[%clk 0:01:44.9]} 23. Be4 {[%clk 0:00:43.6]}
23... Bg3 {[%clk 0:01:25.5]} 24. f3 {[%clk 0:00:26.2]} 24... Re5 {[%clk
0:01:23.3]} 25. Rd4 {[%clk 0:00:18]} 25... Qe7 {[%clk 0:01:05]} 26. Rcd1 {[%clk
0:00:12.4]} 26... Rf7 {[%clk 0:01:00.5]} 27. a4 {[%clk 0:00:13.1]} 27... Kf8
{[%clk 0:00:57.6]} 28. Kg1 {[%clk 0:00:14.3]} 28... Rf4 {[%clk 0:00:57.5]} 29.
Rc4 {[%clk 0:00:14.3]} 29... Rf7 {[%clk 0:00:54.9]} 30. Rc1 {[%clk 0:00:15.4]}
30... c6 {[%clk 0:00:19]} 31. dxc6 {[%clk 0:00:16.4]} 31... bxc6 {[%clk
0:00:19.5]} 32. Rxc6 {[%clk 0:00:17.7]} 32... d5 {[%clk 0:00:20.5]} 33. Rc8+
{[%clk 0:00:13.9]} 33... Kg7 {[%clk 0:00:19.5]} 34. Rc7 {[%clk 0:00:15.5]} 34...
Qxc7 {[%clk 0:00:17.6]} 35. Qxc7 {[%clk 0:00:17.4]} 35... Rxc7 {[%clk
0:00:19.3]} 36. Rxc7+ {[%clk 0:00:16.9]} 36... Kh6 {[%clk 0:00:21.2]} 37. Rc5
{[%clk 0:00:04.2]} 37... dxe4 {[%clk 0:00:21.5]} 38. Rxe5 {[%clk 0:00:05.4]}
38... Bxe5 {[%clk 0:00:23.4]} 39. fxe4 {[%clk 0:00:07.3]} 39... Kg5 {[%clk
0:00:24.7]} 0-1